{"text_format":"1","workbook":"xlsx","n_sheets":1,"sheets":["Pressupost Projecte Cb"],"not_rendered":{"charts":0,"images":2,"macros":1,"external_links":0,"defined_names":6,"comments":1,"pivot_tables":0},"unopened":[],"bounds":{"document_bytes":16777216,"sheet_cells":100000,"rows_first":2000,"rows_last":500,"rows_between":2000,"halvings":0,"cell_chars":16384,"cell_head_chars":4096},"cells_cut":0,"cells_raw":0,"read":"whole","date_system":"1900"}

{"sheet":"Pressupost Projecte Cb","index":0,"n_rows":186,"n_cols":6,"rows_kept":186,"cut":false,"hidden":false,"merged":[]}
[null,null,null,null,null,"Document bàsic 3"]
[null,null,null,null,null,"Àmbit temàtic \"C\": Comunicació i Recerca"]
[null,null,null,null,null,"Modalitat \"b\":Accions de recerca aplicada i sistematització de pràctiques per a ser replicades per entitats,  "]
["Subvencions de l'Ajuntament de Barcelona per a",null,null,null,null,"empreses i projectes d’economia social i solidària  i que siguin rellevants per la transformació social"]
["la promoció i reforç de l'economia social i solidària 2019",null,null,null,null,"Cal omplir les cel·les en blanc i si escau afegir les files necessàries"]
[null,null,null,null,null,"Abans d'omplir, consultar anotacions a peu de pàgina"]
[]
["DADES BÀSIQUES"]
["Nom de la persona jurídica/física",null,null,null,null,"  "]
["NIF de la persona jurídica/física"]
["Nom del projecte"]
["Import total del projecte"]
["Import imputable a la subvenció municipal"]
["Import de l'aportació / Cofinançament de l'entitat",{"$f":"B12-B13","v":0}]
["% de l'import sol·licitat respecte el total del projecte",{"$f":"B13/B12","v":{"$error":"#DIV/0!"}}]
["Data inici del projecte subvencionat (dd/mm/aaaa)"]
["Data fi del projecte subvencionat (dd/mm/aaaa)"]
[]
[]
["PREVISIÓ DE DESPESES DEL PROJECTE"]
[]
["Partides","Import total del projecte","Import imputable a la subvenció municipal","Import de l'aportació / Cofinançament de l'entitat"]
["D.1  Nòmines i seguretat social IRPF (règim general o règim d’autònoms) del personal propi  vinculat al projecte ",{"$f":"SUM(DespesesProjecte[[#This Row],[Import imputable a la subvenció municipal]]+DespesesProjecte[[#This Row],[Import de l''aportació / Cofinançament de l''entitat]])","v":0},{"$f":"SUM(C24:C28)","v":0},{"$f":"SUM(D24:D28)","v":0}]
[]
[]
[]
[]
[]
["D.2 Rendiments anuals nets de l’empresari/a individual (veure 13.2 bases)",{"$f":"SUM(DespesesProjecte[[#This Row],[Import imputable a la subvenció municipal]]+DespesesProjecte[[#This Row],[Import de l''aportació / Cofinançament de l''entitat]])","v":0},{"$f":"SUM(C30:C35)","v":0},{"$f":"SUM(D30:D35)","v":0}]
[]
[]
[]
[]
[]
[]
["D.3  Treballs realitzats per professionals i empreses externes directament vinculades al projecte",{"$f":"SUM(DespesesProjecte[[#This Row],[Import imputable a la subvenció municipal]]+DespesesProjecte[[#This Row],[Import de l''aportació / Cofinançament de l''entitat]])","v":0},{"$f":"SUM(C37:C41)","v":0},{"$f":"SUM(D37:D41)","v":0}]
[]
[]
[]
[]
[]
["D.4 Lloguer de bens mobles/immobles directament vinculats al projecte",{"$f":"SUM(DespesesProjecte[[#This Row],[Import imputable a la subvenció municipal]]+DespesesProjecte[[#This Row],[Import de l''aportació / Cofinançament de l''entitat]])","v":0},{"$f":"SUM(C43:C47)","v":0},{"$f":"SUM(D43:D47)","v":0}]
[]
[]
[]
[]
[]
["D.5 Adquisició de materials i béns consumibles íntegrament imputables al projecte",{"$f":"SUM(DespesesProjecte[[#This Row],[Import imputable a la subvenció municipal]]+DespesesProjecte[[#This Row],[Import de l''aportació / Cofinançament de l''entitat]])","v":0},{"$f":"SUM(C49:C53)","v":0},{"$f":"SUM(D49:D53)","v":0}]
[]
[]
[]
[]
[]
["D.6 Transport – missatgeria imputables al projecte",{"$f":"SUM(DespesesProjecte[[#This Row],[Import imputable a la subvenció municipal]]+DespesesProjecte[[#This Row],[Import de l''aportació / Cofinançament de l''entitat]])","v":0},{"$f":"SUM(C55:C59)","v":0},{"$f":"SUM(D55:D59)","v":0}]
[]
[]
[]
[]
[]
["D.7 Publicitat i propaganda de les activitats directament vinculades al projecte",{"$f":"SUM(DespesesProjecte[[#This Row],[Import imputable a la subvenció municipal]]+DespesesProjecte[[#This Row],[Import de l''aportació / Cofinançament de l''entitat]])","v":0},{"$f":"SUM(C61:C65)","v":0},{"$f":"SUM(D61:D65)","v":0}]
[]
[]
[]
[]
[]
["D.8  Allotjament i dietes, del personal contractat i voluntaris",{"$f":"SUM(DespesesProjecte[[#This Row],[Import imputable a la subvenció municipal]]+DespesesProjecte[[#This Row],[Import de l''aportació / Cofinançament de l''entitat]])","v":0},{"$f":"SUM(C67:C71)","v":0},{"$f":"SUM(D67:D71)","v":0}]
[]
[]
[]
[]
[]
["D.9  Ajuts al transport per als/les participants dels projectes en cas que sigui necessari de manera justificada",{"$f":"SUM(DespesesProjecte[[#This Row],[Import imputable a la subvenció municipal]]+DespesesProjecte[[#This Row],[Import de l''aportació / Cofinançament de l''entitat]])","v":0},{"$f":"SUM(C73:C77)","v":0},{"$f":"SUM(D73:D77)","v":0}]
[]
[]
[]
[]
[]
["D.10  Viatges i desplaçaments imputables a les activitats del projecte",{"$f":"SUM(DespesesProjecte[[#This Row],[Import imputable a la subvenció municipal]]+DespesesProjecte[[#This Row],[Import de l''aportació / Cofinançament de l''entitat]])","v":0},{"$f":"SUM(C79:C83)","v":0},{"$f":"SUM(D79:D83)","v":0}]
[]
[]
[]
[]
[]
["D.11 Tributs, quan siguin abonats directament per la persona jurídica o física beneficiària",{"$f":"SUM(DespesesProjecte[[#This Row],[Import imputable a la subvenció municipal]]+DespesesProjecte[[#This Row],[Import de l''aportació / Cofinançament de l''entitat]])","v":0},{"$f":"SUM(C85:C89)","v":0},{"$f":"SUM(D85:D89)","v":0}]
[]
[]
[]
[]
[]
["D.12  Despeses de l’informe d’auditoria, quan sigui obligatòria la seva presentació per import de la subvenció",{"$f":"SUM(DespesesProjecte[[#This Row],[Import imputable a la subvenció municipal]]+DespesesProjecte[[#This Row],[Import de l''aportació / Cofinançament de l''entitat]])","v":0},{"$f":"SUM(C91:C95)","v":0},{"$f":"SUM(D91:D95)","v":0}]
[]
[]
[]
[]
[]
["D.13  Altres despeses que de manera justificada i per la tipologia del projecte puguin imputar-se directament al projecte",{"$f":"SUM(DespesesProjecte[[#This Row],[Import imputable a la subvenció municipal]]+DespesesProjecte[[#This Row],[Import de l''aportació / Cofinançament de l''entitat]])","v":0},{"$f":"SUM(C97:C101)","v":0},{"$f":"SUM(D97:D101)","v":0}]
[]
[]
[]
[]
[]
["TOTAL DESPESES DIRECTES (aquelles que s’identifiquen directament amb el projecte)",{"$f":"SUM(B23,B29,B36,B42,B48,B54,B60,B66,B72,B78,B84,B90,B96)","v":0},{"$f":"SUM(C23,C29,C36,C42,C48,C54,C60,C66,C72,C78,C84,C90,C96)","v":0},{"$f":"SUM(D23,D29,D36,D42,D48,D54,D60,D66,D72,D78,D84,D90,D96)","v":0}]
["I.1  Personal de suport al projecte (mòmines i seguretat social)",{"$f":"DespesesProjecte[[#This Row],[Import imputable a la subvenció municipal]]+DespesesProjecte[[#This Row],[Import de l''aportació / Cofinançament de l''entitat]]","v":0},{"$f":"SUM(C104:C108)","v":0},{"$f":"SUM(D104:D108)","v":0}]
[]
[]
[]
[]
[]
["I.2  Assegurances",{"$f":"DespesesProjecte[[#This Row],[Import imputable a la subvenció municipal]]+DespesesProjecte[[#This Row],[Import de l''aportació / Cofinançament de l''entitat]]","v":0},{"$f":"SUM(C110:C114)","v":0},{"$f":"SUM(D110:D114)","v":0}]
[]
[]
[]
[]
[]
["I.3  Amortització",{"$f":"DespesesProjecte[[#This Row],[Import imputable a la subvenció municipal]]+DespesesProjecte[[#This Row],[Import de l''aportació / Cofinançament de l''entitat]]","v":0},{"$f":"SUM(C116:C120)","v":0},{"$f":"SUM(D116:D120)","v":0}]
[]
[]
[]
[]
[]
["I.4  Lloguer de béns immobles.",{"$f":"DespesesProjecte[[#This Row],[Import imputable a la subvenció municipal]]+DespesesProjecte[[#This Row],[Import de l''aportació / Cofinançament de l''entitat]]","v":0},{"$f":"SUM(C122:C126)","v":0},{"$f":"SUM(D122:D126)","v":0}]
[]
[]
[]
[]
[]
["I.5  Adquisició de materials i béns consumibles parcialment imputables al projecte.",{"$f":"DespesesProjecte[[#This Row],[Import imputable a la subvenció municipal]]+DespesesProjecte[[#This Row],[Import de l''aportació / Cofinançament de l''entitat]]","v":0},{"$f":"SUM(C128:C132)","v":0},{"$f":"SUM(D128:D132)","v":0}]
[]
[]
[]
[]
[]
["I.6  Manteniment d’edificis i/o instal•lacions.",{"$f":"DespesesProjecte[[#This Row],[Import imputable a la subvenció municipal]]+DespesesProjecte[[#This Row],[Import de l''aportació / Cofinançament de l''entitat]]","v":0},{"$f":"SUM(C134:C138)","v":0},{"$f":"SUM(D134:D138)","v":0}]
[]
[]
[]
[]
[]
["I.7  Comunicacions (telèfon, correus, connexió a internet)",{"$f":"DespesesProjecte[[#This Row],[Import imputable a la subvenció municipal]]+DespesesProjecte[[#This Row],[Import de l''aportació / Cofinançament de l''entitat]]","v":0},{"$f":"SUM(C140:C144)","v":0},{"$f":"SUM(D140:D144)","v":0}]
[]
[]
[]
[]
[]
["I.8  Despeses financeres",{"$f":"DespesesProjecte[[#This Row],[Import imputable a la subvenció municipal]]+DespesesProjecte[[#This Row],[Import de l''aportació / Cofinançament de l''entitat]]","v":0},{"$f":"SUM(C146:C150)","v":0},{"$f":"SUM(D146:D150)","v":0}]
[]
[]
[]
[]
[]
["I.9  Subministraments ",{"$f":"DespesesProjecte[[#This Row],[Import imputable a la subvenció municipal]]+DespesesProjecte[[#This Row],[Import de l''aportació / Cofinançament de l''entitat]]","v":0},{"$f":"SUM(C152:C156)","v":0},{"$f":"SUM(D152:D156)","v":0}]
[]
[]
[]
[]
[]
["I.10  Treball realitzat per altres empreses, parcialment imputables al projecte (neteja, seguretat...)",{"$f":"DespesesProjecte[[#This Row],[Import imputable a la subvenció municipal]]+DespesesProjecte[[#This Row],[Import de l''aportació / Cofinançament de l''entitat]]","v":0},{"$f":"SUM(C158:C162)","v":0},{"$f":"SUM(D158:D162)","v":0}]
[]
[]
[]
[]
[]
["TOTAL DESPESES INDIRECTES (es podran assignar al projecte fent sevir un percentatge d’assignació) Màxim 10% de l’import imputable a la subvenció municipal",{"$f":"SUM(B103,B109,B115,B121,B127,B133,B139,B145,B151,B157)","v":0},{"$f":"SUM(C103,C109,C115,C121,C127,C133,C139,C145,C151,C157)","v":0},{"$f":"SUM(D103,D109,D115,D121,D127,D133,D139,D145,D151,D157)","v":0}]
["TOTAL DE DESPESES PREVISTES",{"$f":"SUM(B102,B163)","v":0},{"$f":"SUM(C102,C163)","v":0},{"$f":"SUM(D102,D163)","v":0}]
[]
[]
["1. La quantia de la subvenció atorgada no superarà el 80% de la despesa total del projecte a subvencionar. "]
["2. L'import màxim de subvenció per a la modalitat \"b\" de la Comunicació i Recerca (Cb) és 15.000€."]
["3. En el cas que la sol·licitud presentada sobrepassi l’import màxim, es considerarà com a import sol·licitat el màxim de l'establert a la convocatòria."]
["4. Les despeses indirectes imputades al projecte detallades, no podran superar el 10% de l’import de la subvenció."]
["* Només amb caràcter excepcional, els/les empresaris/ies individuals que no tinguin persones treballadores en plantilla"]
["    podran acreditar els seus treballs mitjançant una declaració responsable acompanyada de les declaracions IRPF (model 130) de l’exercici corrent."]
["    El preu/hora imputat al projecte subvencionat no podrà superar la quantitat resultant de dividir els rendiments anuals nets de l’empresari/a individual per 1800."]
["5. El caràcter subvencionable de la despesa d'amortització estarà subjecte a les condicions següents:"]
["- Que les subvencions no hagin contribuït a la compra dels béns."]
["- Que l'amortització es calculi de conformitat amb les normes de comptabilitat generalment acceptades."]
["- Que el cost es refereixi al període subvencionable."]
["6. En cap cas es consideraran despeses subvencionables:"]
["- Els impostos indirectes quan siguin susceptibles de recuperació o compensació, ni els impostos sobre la renda."]
["- Les despeses d'inversió, incloses les adquisicions de béns mobles."]
["- Les despeses realitzades amb data anterior a l'inici del projecte i data posterior a la finalització del projecte."]
["- Altres despeses que s'indiquin a la convocatòria."]
["7. Entre la resolució provisional i definitiva s’acrediti la constitució de la cooperativa o societat laboral,"]
["  amb la presentació dels documents d’inscripció en el registre corresponent i l’alta censal."]
["8.  Quan s'hagi de fer despeses de més de 12.000 €, sense IVA, en el cas de prestacions de serveis o lliurament de béns"]
["        hauran d'incorporar tres pressupostos sol·licitats i argumentar el motiu de l'adjudicació en el cas de no ser la proposta més avantatjosa econòmicament."]